[Event "FINAL CAMPEONATO ABSOLUTO DE AJEDREZ CHILE 2018"]
[Site "CENTRO CULTURAL LO PRADO, Chile"]
[Date "2018.03.01"]
[Round "8.2"]
[White "SALINAS HERRERA, Pablo Patrici"]
[Black "AGUIRRE CONTRERAS, Cristian Ro"]
[Result "1-0"]
[TimeControl "90 minutos mas 30 segundos de incremento por movida"]
[WhiteTitle "IM"]
[BlackTitle "FM"]
[WhiteElo "2453"]
[BlackElo "2272"]

1. d4 {[%clk 01:25:10]} {[%emt 00:05:49]} Nf6 {[%clk 01:30:00]} {[%emt
00:01:01]} 2. c4 {[%clk 01:25:36]} {[%emt 00:00:05]} e6 {[%clk 01:27:07]}
{[%emt 00:03:23]} 3. Nc3 {[%clk 01:26:00]} {[%emt 00:00:06]} d5 {[%clk
01:27:27]} {[%emt 00:00:09]} 4. cxd5 {[%clk 01:26:26]} {[%emt 00:00:05]} exd5
{[%clk 01:27:45]} {[%emt 00:00:12]} 5. Bg5 {[%clk 01:26:50]} {[%emt 00:00:06]}
c6 {[%clk 01:26:17]} {[%emt 00:01:59]} 6. e3 {[%clk 01:26:36]} {[%emt
00:00:44]} h6 {[%clk 01:23:36]} {[%emt 00:03:11]} 7. Bh4 {[%clk 01:25:05]}
{[%emt 00:02:01]} Bd6 {[%clk 01:18:52]} {[%emt 00:05:13]} 8. Bd3 {[%clk
01:23:24]} {[%emt 00:02:10]} O-O {[%clk 01:18:28]} {[%emt 00:00:54]} 9. Nf3
{[%clk 01:21:04]} {[%emt 00:02:50]} Re8 {[%clk 01:16:56]} {[%emt 00:02:03]} 10.
Qc2 {[%clk 01:20:18]} {[%emt 00:01:17]} Bg4 {[%clk 01:16:57]} {[%emt 00:00:28]}
11. Nd2 {[%clk 01:19:25]} {[%emt 00:01:23]} Nbd7 {[%clk 01:15:07]} {[%emt
00:02:20]} 12. h3 {[%clk 01:11:49]} {[%emt 00:08:05]} Be6 {[%clk 01:13:38]}
{[%emt 00:02:00]} 13. O-O-O {[%clk 01:06:33]} {[%emt 00:05:46]} b5 {[%clk
01:09:11]} {[%emt 00:04:57]} 14. Kb1 {[%clk 01:04:36]} {[%emt 00:02:28]} Nb6
{[%clk 01:08:18]} {[%emt 00:01:23]} 15. f3 {[%clk 00:54:43]} {[%emt 00:10:23]}
b4 {[%clk 01:01:22]} {[%emt 00:07:26]} 16. Na4 {[%clk 00:52:47]} {[%emt
00:02:26]} Bd7 {[%clk 00:55:29]} {[%emt 00:06:24]} 17. e4 {[%clk 00:46:43]}
{[%emt 00:06:35]} Nxa4 {[%clk 00:43:04]} {[%emt 00:12:54]} 18. Qxa4 {[%clk
00:47:06]} {[%emt 00:00:07]} Be7 {[%clk 00:43:24]} {[%emt 00:00:09]} 19. Bxf6
{[%clk 00:32:59]} {[%emt 00:14:37]} Bxf6 {[%clk 00:43:43]} {[%emt 00:00:11]} 20.
Qxb4 {[%clk 00:33:24]} {[%emt 00:00:05]} Rb8 {[%clk 00:44:03]} {[%emt
00:00:10]} 21. Qc5 {[%clk 00:33:38]} {[%emt 00:00:16]} Be7 {[%clk 00:43:45]}
{[%emt 00:00:49]} 22. Qc2 {[%clk 00:33:59]} {[%emt 00:00:09]} Rb4 {[%clk
00:43:54]} {[%emt 00:00:20]} 23. Nb3 {[%clk 00:32:37]} {[%emt 00:01:52]} Qb6
{[%clk 00:44:12]} {[%emt 00:00:13]} 24. Nc5 {[%clk 00:28:18]} {[%emt 00:04:49]}
Rb8 {[%clk 00:44:16]} {[%emt 00:00:26]} 25. b3 {[%clk 00:28:43]} {[%emt
00:00:05]} Bc8 {[%clk 00:44:13]} {[%emt 00:00:32]} 26. exd5 {[%clk 00:28:53]}
{[%emt 00:00:20]} cxd5 {[%clk 00:34:08]} {[%emt 00:10:36]} 27. Rhe1 {[%clk
00:29:05]} {[%emt 00:00:17]} Bf8 {[%clk 00:33:50]} {[%emt 00:00:48]} 28. a3
{[%clk 00:24:27]} {[%emt 00:05:08]} Rxb3+ {[%clk 00:23:54]} {[%emt 00:10:26]}
29. Nxb3 {[%clk 00:23:12]} {[%emt 00:01:45]} Qxb3+ {[%clk 00:24:02]} {[%emt
00:00:21]} 30. Qxb3 {[%clk 00:23:36]} {[%emt 00:00:05]} Rxb3+ {[%clk 00:24:28]}
{[%emt 00:00:04]} 31. Kc2 {[%clk 00:24:01]} {[%emt 00:00:05]} Rxa3 {[%clk
00:24:41]} {[%emt 00:00:18]} 32. Ra1 {[%clk 00:24:14]} {[%emt 00:00:17]} Be6
{[%clk 00:21:05]} {[%emt 00:04:06]} 33. Rxa3 {[%clk 00:24:38]} {[%emt
00:00:06]} Bxa3 {[%clk 00:21:24]} {[%emt 00:00:11]} 34. Ra1 {[%clk 00:25:05]}
{[%emt 00:00:03]} Bd6 {[%clk 00:21:35]} {[%emt 00:00:19]} 35. Rxa7 {[%clk
00:25:29]} {[%emt 00:00:06]} g5 {[%clk 00:21:42]} {[%emt 00:00:22]} 36. g4
{[%clk 00:25:17]} {[%emt 00:00:42]} Kg7 {[%clk 00:21:35]} {[%emt 00:00:38]} 37.
Bb5 {[%clk 00:25:22]} {[%emt 00:00:24]} h5 {[%clk 00:21:07]} {[%emt 00:00:58]}
38. Bd7 {[%clk 00:25:37]} {[%emt 00:00:15]} hxg4 {[%clk 00:18:47]} {[%emt
00:02:49]} 39. hxg4 {[%clk 00:22:41]} {[%emt 00:03:26]} Kf6 {[%clk 00:18:50]}
{[%emt 00:00:27]} 40. Kb3 {[%clk 00:22:23]} {[%emt 00:00:48]} Bf8 {[%clk
00:18:11]} {[%emt 00:01:09]} 41. Ka4 {[%clk 00:19:29]} {[%emt 00:03:25]} Bxd7+
{[%clk 00:16:20]} {[%emt 00:02:22]} 42. Rxd7 {[%clk 00:19:48]} {[%emt
00:00:11]} Ke6 {[%clk 00:16:44]} {[%emt 00:00:06]} 43. Ra7 {[%clk 00:20:15]}
{[%emt 00:00:03]} Bg7 {[%clk 00:16:46]} {[%emt 00:00:28]} 44. Ra6+ {[%clk
00:19:37]} {[%emt 00:01:08]} Ke7 {[%clk 00:16:33]} {[%emt 00:00:42]} 45. Kb5
{[%clk 00:20:00]} {[%emt 00:00:07]} Bxd4 {[%clk 00:16:52]} {[%emt 00:00:11]} 46.
Kc6 {[%clk 00:20:01]} {[%emt 00:00:29]} Ke6 {[%clk 00:16:28]} {[%emt 00:00:54]}
47. Ra5 {[%clk 00:20:28]} {[%emt 00:00:03]} Be5 {[%clk 00:16:12]} {[%emt
00:00:46]} 48. Rxd5 {[%clk 00:20:54]} {[%emt 00:00:05]} f6 {[%clk 00:14:11]}
{[%emt 00:02:30]} 49. Rd8 {[%clk 00:21:07]} {[%emt 00:00:18]} Ke7 {[%clk
00:13:21]} {[%emt 00:01:20]} 50. Ra8 {[%clk 00:21:29]} {[%emt 00:00:08]} Ke6
{[%clk 00:13:38]} {[%emt 00:00:13]} 51. Re8 {[%clk 00:21:53]} {[%emt 00:00:05]}
Kf7 {[%clk 00:13:55]} {[%emt 00:00:13]} 52. Kd7 {[%clk 00:22:05]} {[%emt
00:00:19]} Bd4 {[%clk 00:13:19]} {[%emt 00:01:06]} 53. Re7 {[%clk 00:22:30]}
{[%emt 00:00:05]} Kg6 {[%clk 00:13:43]} {[%emt 00:00:06]} 54. Ke6 {[%clk
00:22:47]} {[%emt 00:00:13]} Bc3 {[%clk 00:12:43]} {[%emt 00:01:31]} 55. Re8
{[%clk 00:23:06]} {[%emt 00:00:11]} Kg7 {[%clk 00:10:32]} {[%emt 00:02:41]} 56.
Kf5 {[%clk 00:23:16]} {[%emt 00:00:19]} Kf7 {[%clk 00:10:38]} {[%emt 00:00:25]}
57. Rb8 {[%clk 00:23:40]} {[%emt 00:00:06]} Be5 {[%clk 00:10:05]} {[%emt
00:01:03]} 58. Rb7+ {[%clk 00:24:07]} {[%emt 00:00:04]} Kf8 {[%clk 00:10:18]}
{[%emt 00:00:17]} 59. Kg6 {[%clk 00:24:29]} {[%emt 00:00:08]} 1-0

[Event "FINAL CAMPEONATO ABSOLUTO DE AJEDREZ CHILE 2018"]
[Site "CENTRO CULTURAL LO PRADO, Chile"]
[Date "2018.03.01"]
[Round "8.3"]
[White "HENRIQUEZ VILLAGRA, Cristobal"]
[Black "FUENTES PARRA, Victor Ignacio"]
[Result "1-0"]
[TimeControl "90 minutos mas 30 segundos de incremento por movida"]
[WhiteTitle "GM"]
[WhiteElo "2501"]
[BlackElo "2148"]

1. Nf3 {[%clk 01:26:28]} {[%emt 00:04:31]} d5 {[%clk 01:30:41]} {[%emt
00:00:19]} 2. g3 {[%clk 01:26:53]} {[%emt 00:00:06]} Nf6 {[%clk 01:30:37]}
{[%emt 00:00:34]} 3. Bg2 {[%clk 01:27:17]} {[%emt 00:00:05]} Bg4 {[%clk
01:31:03]} {[%emt 00:00:04]} 4. c4 {[%clk 01:24:48]} {[%emt 00:02:59]} e6
{[%clk 01:27:47]} {[%emt 00:03:46]} 5. Qb3 {[%clk 01:21:16]} {[%emt 00:04:02]}
Qc8 {[%clk 01:26:49]} {[%emt 00:01:28]} 6. Ne5 {[%clk 01:17:02]} {[%emt
00:04:44]} c6 {[%clk 01:26:20]} {[%emt 00:00:59]} 7. Nxg4 {[%clk 01:09:33]}
{[%emt 00:07:58]} Nxg4 {[%clk 01:26:43]} {[%emt 00:00:06]} 8. d4 {[%clk
01:09:53]} {[%emt 00:00:11]} Bd6 {[%clk 01:21:17]} {[%emt 00:05:56]} 9. Nc3
{[%clk 01:08:13]} {[%emt 00:02:10]} Nf6 {[%clk 01:12:29]} {[%emt 00:09:17]} 10.
Bg5 {[%clk 00:55:38]} {[%emt 00:13:05]} dxc4 {[%clk 01:04:55]} {[%emt
00:08:05]} 11. Qxc4 {[%clk 00:55:43]} {[%emt 00:00:25]} Nbd7 {[%clk 01:04:08]}
{[%emt 00:01:17]} 12. e4 {[%clk 00:55:09]} {[%emt 00:01:04]} e5 {[%clk
01:02:09]} {[%emt 00:02:29]} 13. O-O-O {[%clk 00:35:30]} {[%emt 00:20:09]} b5
{[%clk 00:47:24]} {[%emt 00:15:15]} 14. Qe2 {[%clk 00:35:47]} {[%emt 00:00:12]}
O-O {[%clk 00:14:11]} {[%emt 00:33:43]} 15. f4 {[%clk 00:34:47]} {[%emt
00:01:30]} exd4 {[%clk 00:13:47]} {[%emt 00:00:53]} 16. Rxd4 {[%clk 00:33:15]}
{[%emt 00:02:03]} Bc5 {[%clk 00:13:29]} {[%emt 00:00:48]} 17. Rd3 {[%clk
00:33:40]} {[%emt 00:00:05]} Qa6 {[%clk 00:10:43]} {[%emt 00:03:16]} 18. Qc2
{[%clk 00:23:51]} {[%emt 00:10:19]} h6 {[%clk 00:07:32]} {[%emt 00:03:41]} 19.
Bh4 {[%clk 00:23:06]} {[%emt 00:01:14]} g5 {[%clk 00:02:00]} {[%emt 00:06:03]}
20. fxg5 {[%clk 00:16:17]} {[%emt 00:07:19]} hxg5 {[%clk 00:00:33]} {[%emt
00:01:57]} 21. Bxg5 {[%clk 00:16:40]} {[%emt 00:00:06]} Nh7 {[%clk 00:00:39]}
{[%emt 00:00:24]} 22. Rxd7 {[%clk 00:14:13]} {[%emt 00:02:58]} Nxg5 {[%clk
00:01:04]} {[%emt 00:00:05]} 23. Qd2 {[%clk 00:14:32]} {[%emt 00:00:11]} Ne6
{[%clk 00:00:42]} {[%emt 00:00:52]} 24. Bh3 {[%clk 00:14:57]} {[%emt 00:00:05]}
1-0

[Event "FINAL CAMPEONATO ABSOLUTO DE AJEDREZ CHILE 2018"]
[Site "CENTRO CULTURAL LO PRADO, Chile"]
[Date "2018.03.01"]
[Round "8.4"]
[White "LOPEZ SILVA, Hugo Andres"]
[Black "ABARCA GONZALEZ, Nicolas"]
[Result "1-0"]
[TimeControl "90 minutos mas 30 segundos de incremento por movida"]
[WhiteElo "2389"]
[BlackElo "2388"]

1. e4 {[%clk 01:18:59]} {[%emt 00:11:59]} c5 {[%clk 01:30:50]} {[%emt
00:00:11]} 2. Nf3 {[%clk 01:19:09]} {[%emt 00:00:20]} Nc6 {[%clk 01:30:20]}
{[%emt 00:01:00]} 3. d4 {[%clk 01:19:07]} {[%emt 00:00:31]} cxd4 {[%clk
01:30:46]} {[%emt 00:00:05]} 4. Nxd4 {[%clk 01:19:33]} {[%emt 00:00:04]} g6
{[%clk 01:31:03]} {[%emt 00:00:13]} 5. c4 {[%clk 01:19:58]} {[%emt 00:00:04]}
Bg7 {[%clk 01:31:11]} {[%emt 00:00:23]} 6. Be3 {[%clk 01:20:25]} {[%emt
00:00:02]} Nf6 {[%clk 01:30:01]} {[%emt 00:01:41]} 7. Nc3 {[%clk 01:20:52]}
{[%emt 00:00:02]} Ng4 {[%clk 01:25:10]} {[%emt 00:05:21]} 8. Qxg4 {[%clk
01:20:43]} {[%emt 00:00:39]} Nxd4 {[%clk 01:25:35]} {[%emt 00:00:05]} 9. Qd1
{[%clk 01:21:06]} {[%emt 00:00:07]} Ne6 {[%clk 01:26:01]} {[%emt 00:00:04]} 10.
Qd2 {[%clk 01:20:32]} {[%emt 00:01:04]} Qa5 {[%clk 01:26:16]} {[%emt 00:00:15]}
11. Rc1 {[%clk 01:20:58]} {[%emt 00:00:03]} b6 {[%clk 01:25:34]} {[%emt
00:01:13]} 12. Bd3 {[%clk 00:55:23]} {[%emt 00:26:05]} Bb7 {[%clk 01:21:29]}
{[%emt 00:04:35]} 13. O-O {[%clk 00:53:36]} {[%emt 00:02:17]} g5 {[%clk
01:19:09]} {[%emt 00:02:51]} 14. Rfd1 {[%clk 00:51:34]} {[%emt 00:02:31]} Qe5
{[%clk 01:18:09]} {[%emt 00:01:30]} 15. b4 {[%clk 00:43:32]} {[%emt 00:08:32]}
d6 {[%clk 00:53:23]} {[%emt 00:25:17]} 16. Nd5 {[%clk 00:42:31]} {[%emt
00:01:30]} Kf8 {[%clk 00:50:53]} {[%emt 00:03:00]} 17. c5 {[%clk 00:26:24]}
{[%emt 00:16:37]} dxc5 {[%clk 00:43:46]} {[%emt 00:07:38]} 18. bxc5 {[%clk
00:25:44]} {[%emt 00:01:09]} bxc5 {[%clk 00:43:20]} {[%emt 00:00:56]} 19. Bxc5
{[%clk 00:23:21]} {[%emt 00:02:53]} Bxd5 {[%clk 00:24:32]} {[%emt 00:19:19]} 20.
exd5 {[%clk 00:22:49]} {[%emt 00:01:01]} Qxd5 {[%clk 00:09:27]} {[%emt
00:15:36]} 21. Qb4 {[%clk 00:13:01]} {[%emt 00:10:18]} Nxc5 {[%clk 00:03:43]}
{[%emt 00:06:14]} 22. Rxc5 {[%clk 00:12:38]} {[%emt 00:00:52]} a5 {[%clk
00:00:45]} {[%emt 00:03:28]} 23. Qb6 {[%clk 00:08:59]} {[%emt 00:04:08]} Qd8
{[%clk 00:00:37]} {[%emt 00:00:39]} 24. Rc7 {[%clk 00:06:57]} {[%emt 00:02:32]}
Rb8 {[%clk 00:00:36]} {[%emt 00:00:31]} 25. Bc2 {[%clk 00:06:05]} {[%emt
00:01:22]} Qe8 {[%clk 00:00:37]} {[%emt 00:00:29]} 26. Qxa5 {[%clk 00:04:34]}
{[%emt 00:02:00]} Bf6 {[%clk 00:01:06]} 27. Rc5 {[%clk 00:01:06]} {[%emt
00:03:59]} Ra8 {[%clk 00:01:12]} {[%emt 00:00:24]} 28. Qc7 {[%clk 00:00:33]}
{[%emt 00:01:03]} Rxa2 {[%clk 00:00:41]} {[%emt 00:01:01]} 29. h4 {[%clk
00:00:42]} {[%emt 00:00:20]} e6 {[%clk 00:00:32]} {[%emt 00:00:39]} 30. hxg5
{[%emt 00:00:29]} Be7 31. Rc4 {[%clk 00:00:35]} {[%emt 00:00:38]} Bxg5 {[%clk
00:00:44]} {[%emt 00:00:48]} 32. Rg4 {[%clk 00:00:31]} {[%emt 00:00:34]} Bf6
{[%clk 00:00:32]} {[%emt 00:00:41]} 33. Qc5+ {[%clk 00:00:34]} {[%emt
00:00:27]} Be7 {[%clk 00:00:57]} {[%emt 00:00:06]} 34. Qh5 {[%clk 00:00:36]}
{[%emt 00:00:28]} h6 {[%clk 00:01:00]} {[%emt 00:00:26]} 35. Bb3 {[%clk
00:00:35]} {[%emt 00:00:32]} Ra3 {[%clk 00:00:34]} {[%emt 00:00:56]} 36. Bc2
{[%clk 00:00:31]} {[%emt 00:00:33]} Ra2 {[%clk 00:01:03]} {[%emt 00:00:02]} 37.
Qe5 {[%clk 00:00:38]} {[%emt 00:00:23]} f6 {[%clk 00:00:37]} {[%emt 00:00:56]}
38. Qc3 {[%clk 00:00:37]} {[%emt 00:00:31]} Rg8 {[%clk 00:00:34]} {[%emt
00:00:34]} 39. Rxg8+ {[%clk 00:00:43]} {[%emt 00:00:24]} Kxg8 {[%clk 00:01:02]}
40. Bb3 {[%clk 00:00:37]} {[%emt 00:00:37]} Ra6 {[%clk 00:01:02]} {[%emt
00:00:31]} 41. Qg3+ {[%clk 00:00:43]} {[%emt 00:00:24]} Kf8 {[%clk 00:00:55]}
{[%emt 00:00:37]} 42. Qh3 {[%clk 00:00:33]} {[%emt 00:00:40]} Qg6 {[%clk
00:01:02]} {[%emt 00:00:22]} 43. Bxe6 {[%clk 00:00:50]} {[%emt 00:00:13]} Rd6
{[%clk 00:01:19]} {[%emt 00:00:13]} 44. Ra1 {[%clk 00:00:55]} {[%emt 00:00:25]}
Kg7 {[%clk 00:01:00]} {[%emt 00:00:49]} 45. Bb3 {[%clk 00:00:33]} {[%emt
00:00:52]} f5 {[%clk 00:00:34]} {[%emt 00:00:57]} 46. Qe3 {[%clk 00:00:34]}
{[%emt 00:00:28]} Qg5 {[%clk 00:00:49]} {[%emt 00:00:15]} 47. f4 {[%clk
00:00:42]} {[%emt 00:00:23]} Qf6 {[%clk 00:01:00]} {[%emt 00:00:18]} 48. Ra7
{[%clk 00:01:11]} {[%emt 00:00:01]} Kf8 {[%clk 00:01:30]} 49. Qg3 {[%clk
00:00:32]} {[%emt 00:01:08]} Rd1+ {[%clk 00:01:03]} {[%emt 00:00:57]} 50. Kh2
{[%emt 00:01:36]} Rd6 {[%emt 00:00:10]} 51. Kg1 {[%emt 00:04:12]} 1-0

[Event "FINAL CAMPEONATO ABSOLUTO DE AJEDREZ CHILE 2018"]
[Site "CENTRO CULTURAL LO PRADO, Chile"]
[Date "2018.03.01"]
[Round "8.5"]
[White "PEREZ GORMAZ, Matias"]
[Black "GARCIA CARDENAS, Pablo"]
[Result "1/2-1/2"]
[TimeControl "90 minutos mas 30 segundos de incremento por movida"]
[WhiteTitle "FM"]
[BlackTitle "IM"]
[WhiteElo "2410"]
[BlackElo "2454"]

1. Nf3 {[%clk 01:21:03]} {[%emt 00:09:56]} d5 {[%clk 01:30:51]} {[%emt
00:00:10]} 2. d4 {[%clk 01:21:26]} {[%emt 00:00:07]} Nf6 {[%clk 01:31:14]}
{[%emt 00:00:07]} 3. Bf4 {[%clk 01:21:50]} {[%emt 00:00:05]} c5 {[%clk
01:30:59]} {[%emt 00:00:45]} 4. e3 {[%clk 01:22:14]} {[%emt 00:00:06]} Nc6
{[%clk 01:31:25]} {[%emt 00:00:05]} 5. Nbd2 {[%clk 01:22:21]} {[%emt 00:00:23]}
e6 {[%clk 01:31:24]} {[%emt 00:00:31]} 6. c3 {[%clk 01:22:41]} {[%emt
00:00:10]} cxd4 {[%clk 01:31:46]} {[%emt 00:00:08]} 7. exd4 {[%clk 01:09:39]}
{[%emt 00:13:31]} Nh5 {[%clk 01:32:14]} {[%emt 00:00:02]} 8. Be3 {[%emt
00:17:39]} Bd6 9. Ne5 {[%emt 00:00:10]} Nf6 {[%emt 00:00:01]} 10. Nef3 {[%emt
00:00:06]} Nh5 11. Ne5 g6 12. Be2 {[%emt 00:00:03]} Ng7 13. Bf1 {[%emt
00:00:03]} 1/2-1/2

[Event "FINAL CAMPEONATO ABSOLUTO DE AJEDREZ CHILE 2018"]
[Site "CENTRO CULTURAL LO PRADO, Chile"]
[Date "2018.03.01"]
[Round "9.1"]
[White "DIAZ VILLAGRAN, Robert"]
[Black "LLORENS SEPULVEDA, Marcelo"]
[Result "1/2-1/2"]
[TimeControl "90 minutos mas 30 segundos de incremento por movida"]
[WhiteTitle "FM"]
[BlackTitle "FM"]
[WhiteElo "2317"]
[BlackElo "2266"]

1. e4 {[%clk 01:30:57]} {[%emt 00:00:01]} c5 {[%clk 01:28:32]} {[%emt
00:02:28]} 2. Nf3 {[%clk 01:31:13]} {[%emt 00:00:15]} d6 {[%clk 01:20:41]}
{[%emt 00:08:20]} 3. c3 {[%clk 01:25:47]} {[%emt 00:05:57]} Nf6 {[%clk
01:20:20]} {[%emt 00:00:51]} 4. Bd3 {[%clk 01:26:10]} {[%emt 00:00:07]} g6
{[%clk 01:20:28]} {[%emt 00:00:21]} 5. Bc2 {[%clk 01:26:35]} {[%emt 00:00:06]}
Bg7 {[%clk 01:20:39]} {[%emt 00:00:18]} 6. h3 {[%clk 01:27:00]} {[%emt
00:00:06]} O-O {[%clk 01:20:27]} {[%emt 00:00:41]} 7. O-O {[%clk 01:27:25]}
{[%emt 00:00:06]} Nc6 {[%clk 01:20:04]} {[%emt 00:00:54]} 8. d4 {[%clk
01:27:44]} {[%emt 00:00:12]} Qc7 {[%clk 01:20:07]} {[%emt 00:00:27]} 9. Re1
{[%clk 01:28:05]} {[%emt 00:00:10]} Rb8 {[%clk 01:19:48]} {[%emt 00:00:49]} 10.
Bf4 {[%clk 01:28:11]} {[%emt 00:00:24]} e5 {[%clk 01:19:40]} {[%emt 00:00:38]}
1/2-1/2

[Event "FINAL CAMPEONATO ABSOLUTO DE AJEDREZ CHILE 2018"]
[Site "CENTRO CULTURAL LO PRADO, Chile"]
[Date "2018.03.01"]
[Round "9.3"]
[White "ABARCA GONZALEZ, Nicolas"]
[Black "PEREZ GORMAZ, Matias"]
[Result "1-0"]
[TimeControl "90 minutos mas 30 segundos de incremento por movida"]
[BlackTitle "FM"]
[WhiteElo "2388"]
[BlackElo "2410"]

1. e4 {[%clk 01:30:59]} e5 {[%clk 01:19:00]} {[%emt 00:12:00]} 2. Nf3 {[%clk
01:30:11]} {[%emt 00:01:17]} Nc6 {[%clk 01:19:24]} {[%emt 00:00:06]} 3. d4
{[%clk 01:30:37]} {[%emt 00:00:04]} exd4 {[%clk 01:19:48]} {[%emt 00:00:06]} 4.
Nxd4 {[%clk 01:31:05]} {[%emt 00:00:02]} Bb4+ {[%clk 01:19:30]} {[%emt
00:00:48]} 5. c3 {[%clk 01:31:03]} {[%emt 00:00:32]} Bc5 {[%clk 01:19:54]}
{[%emt 00:00:06]} 6. Nxc6 {[%clk 01:29:15]} {[%emt 00:02:19]} bxc6 {[%clk
01:20:19]} {[%emt 00:00:06]} 7. Bc4 {[%clk 01:27:03]} {[%emt 00:02:41]} Qh4
{[%clk 01:20:40]} {[%emt 00:00:08]} 8. Qf3 {[%clk 01:06:39]} {[%emt 00:20:55]}
Nf6 {[%clk 01:07:58]} {[%emt 00:13:12]} 9. Bf4 {[%clk 01:01:18]} {[%emt
00:05:51]} O-O {[%clk 01:00:41]} {[%emt 00:07:47]} 10. O-O {[%clk 00:58:05]}
{[%emt 00:03:44]} d5 {[%clk 00:29:35]} {[%emt 00:31:36]} 11. exd5 {[%clk
00:49:32]} {[%emt 00:09:02]} cxd5 {[%clk 00:29:50]} {[%emt 00:00:15]} 12. Bd3
{[%clk 00:47:18]} {[%emt 00:02:44]} Ne4 {[%clk 00:30:11]} {[%emt 00:00:09]} 13.
Bxe4 {[%clk 00:38:47]} {[%emt 00:09:01]} dxe4 {[%clk 00:30:35]} {[%emt
00:00:05]} 14. Qg3 {[%clk 00:39:15]} {[%emt 00:00:03]} Qh5 {[%clk 00:23:26]}
{[%emt 00:07:39]} 15. Nd2 {[%clk 00:39:04]} {[%emt 00:00:41]} Re8 {[%clk
00:22:06]} {[%emt 00:01:50]} 16. Rfe1 {[%clk 00:37:37]} {[%emt 00:01:57]} Bb7
{[%clk 00:22:27]} {[%emt 00:00:09]} 17. b4 {[%clk 00:35:36]} {[%emt 00:02:31]}
Bf8 {[%clk 00:14:42]} {[%emt 00:08:15]} 18. Bxc7 {[%clk 00:22:49]} {[%emt
00:13:18]} Re6 {[%clk 00:15:08]} {[%emt 00:00:03]} 19. Nf1 {[%clk 00:23:12]}
{[%emt 00:00:08]} g5 {[%clk 00:13:30]} {[%emt 00:02:08]} 20. Rad1 {[%clk
00:15:42]} {[%emt 00:08:00]} f5 {[%clk 00:12:20]} {[%emt 00:01:40]} 21. f4
{[%clk 00:15:57]} {[%emt 00:00:16]} Rg6 {[%clk 00:11:43]} {[%emt 00:01:07]} 22.
Ne3 {[%clk 00:16:17]} {[%emt 00:00:10]} gxf4 {[%clk 00:11:02]} {[%emt
00:01:11]} 23. Qxf4 {[%clk 00:16:39]} {[%emt 00:00:08]} Bh6 {[%clk 00:11:22]}
{[%emt 00:00:09]} 24. Qf1 {[%clk 00:16:17]} {[%emt 00:00:51]} Qf3 {[%clk
00:03:17]} {[%emt 00:08:35]} 25. Nxf5 {[%clk 00:11:51]} {[%emt 00:04:57]} Qxf1+
{[%clk 00:00:50]} {[%emt 00:02:57]} 26. Rxf1 {[%clk 00:11:33]} {[%emt
00:00:48]} Bf8 {[%clk 00:01:19]} {[%emt 00:00:01]} 27. Rd7 {[%clk 00:06:22]}
{[%emt 00:05:41]} Re8 {[%clk 00:01:01]} {[%emt 00:00:48]} 28. Ne3 {[%clk
00:04:53]} {[%emt 00:01:59]} Bc6 {[%clk 00:00:41]} {[%emt 00:00:49]} 29. Rdd1
{[%clk 00:05:06]} {[%emt 00:00:16]} Bh6 {[%clk 00:00:35]} {[%emt 00:00:37]} 30.
Bf4 {[%clk 00:05:15]} {[%emt 00:00:21]} Bg7 {[%clk 00:01:02]} {[%emt 00:00:03]}
31. c4 {[%clk 00:05:33]} {[%emt 00:00:12]} Ba4 {[%clk 00:01:06]} {[%emt
00:00:26]} 32. Rd6 {[%clk 00:04:26]} {[%emt 00:01:37]} Rxd6 {[%clk 00:01:12]}
{[%emt 00:00:24]} 33. Bxd6 {[%clk 00:04:54]} {[%emt 00:00:01]} Bd4 {[%clk
00:01:38]} {[%emt 00:00:05]} 34. Bc5 {[%clk 00:04:10]} {[%emt 00:01:14]} Bb2
{[%clk 00:00:35]} {[%emt 00:01:32]} 35. Bxa7 {[%clk 00:04:08]} {[%emt
00:00:32]} Ra8 {[%clk 00:00:34]} {[%emt 00:00:31]} 36. Bc5 {[%clk 00:04:11]}
{[%emt 00:00:28]} Bd7 {[%clk 00:00:59]} {[%emt 00:00:04]} 37. Nd1 {[%emt
00:04:05]} Bg7 {[%clk 00:00:35]} {[%emt 00:00:53]} 38. Rf2 {[%clk 00:00:49]}
{[%emt 00:00:18]} Be6 {[%clk 00:01:03]} {[%emt 00:00:02]} 39. Ne3 {[%clk
00:01:09]} {[%emt 00:00:10]} Bh6 {[%clk 00:01:25]} {[%emt 00:00:08]} 40. Rc2
{[%clk 00:01:22]} {[%emt 00:00:17]} Rc8 {[%clk 00:00:43]} {[%emt 00:01:13]} 41.
Kf2 {[%clk 00:01:44]} {[%emt 00:00:07]} Bf4 {[%clk 00:01:02]} {[%emt 00:00:11]}
42. a4 {[%clk 00:01:58]} {[%emt 00:00:17]} Rc7 {[%clk 00:00:40]} {[%emt
00:00:52]} 43. g3 {[%clk 00:02:09]} {[%emt 00:00:19]} Be5 {[%clk 00:01:04]}
{[%emt 00:00:06]} 44. a5 {[%clk 00:02:34]} {[%emt 00:00:05]} Bc8 {[%clk
00:00:51]} {[%emt 00:00:43]} 45. Rd2 {[%clk 00:02:38]} {[%emt 00:00:26]} Bc3
{[%clk 00:00:45]} {[%emt 00:00:36]} 46. Rd8+ {[%clk 00:02:56]} {[%emt
00:00:12]} Kg7 {[%clk 00:01:11]} {[%emt 00:00:04]} 47. Bd4+ {[%clk 00:03:09]}
{[%emt 00:00:17]} 1-0